Cogmind - Beta 13 X2 @@@ ROGUE MODE // 2024.01.12 @ 15:38:18 Player: IzRey Result: Destroyed by P-70 Sage with Tesla Rifle Performance ------------- Evolutions (6) 3000 Regions Visited (14) 2800 Robots Destroyed (135) 675 Value Destroyed (5112) 5112 Prototype IDs (24) 480 Alien Tech Used (1) 200 Bonus (1200) 1200 TOTAL SCORE: 13467 Bonus ------- High Alert Combat Kills 201 Follower Combat Kills 120 Met Data Miner 300 Met Warlord at Base 500 MAIN.C Attacked Warlord 500 Friendly Fire -421 Cogmind --------- Core Integrity 0/1150 Matter 91/300 Energy 921/925 System Corruption 1% Temperature Cool (-191) Movement Rolling (115) Ox1 Location -4/Warlord Parts ------- > --- POWER (1) -------- Antimatter Reactor > --- PROPULSION (6) --- Flexi-carbon Leg Myomer Leg Enhanced Biometal Leg Enhanced Biometal Leg Armored Huge Wheel > --- UTILITY (9) ------ Advanced Cryofiber Web Improved Heat Sink Experimental Energy Well Spectral Analyzer Advanced Terrain Scanner Makeshift Salvage Targeting Computer Improved Targeting Computer Experimental Targeting Computer Hacking Suite > --- WEAPON (3) ------- Autogun RU-N14's Throwing Claymores v3 Power Sword > --- INVENTORY (5) ---- Myomer Leg System Purifier RU-N14's Throwing Claymores v3 (10) RU-N14's Throwing Claymores v3 (10) RU-N14's Throwing Claymores v3 (10) Peak State ------------ > --- POWER ------------ Micro Fission Core > --- PROPULSION ------- Flexi-carbon Leg Myomer Leg Enhanced Biometal Leg Enhanced Biometal Leg Armored Huge Wheel > --- UTILITY ---------- Advanced Cryofiber Web Improved Heat Sink Experimental Energy Well Spectral Analyzer Advanced Terrain Scanner Makeshift Salvage Targeting Computer Improved Targeting Computer Experimental Targeting Computer Hacking Suite > --- WEAPON ----------- Vortex Cannon Vortex Catalyst Activator > --- INVENTORY -------- Myomer Leg System Purifier Barrage Gun Enhanced Gauss Cannon Power Sword [Rating: 121] Favorites ----------- Power Heavy Ion Engine Engine Heavy Ion Engine Power Core Micro Fission Core Reactor Antimatter Reactor Propulsion Improved Aluminum Leg Treads Improved Medium Treads Leg Improved Aluminum Leg Wheel Armored Huge Wheel Utility Large Storage Unit Device Improved Heat Sink Storage Large Storage Unit Processor Advanced Targeting Computer Hackware Hacking Suite Protection Improved Medium Armor Plating Weapon Minigun Energy Cannon Disruptor Cannon Ballistic Gun Minigun Ballistic Cannon Enhanced Gauss Cannon Launcher Grenade Launcher Special Weapon RU-N14's Throwing Claymores v3 Slashing Weapon Chainsword Build | -11 -10 -9 -8 -7 -6 -6 -6 -6 -5 -5 -4 -4 -4 -4 ------- Run | Yrd Mat Mat Mat Fac Fac Low Low Dat Pro Fac Fac Upp Upp War Slots Evolved 12 | . . 2 2 2 2 . . . . 2 2 . . . Power . | . . . . . . . . . . . . . . . Propulsion 4 | . . . 1 1 . . . . . 1 1 . . . Utility 7 | . . 1 1 1 2 . . . . 1 1 . . . Weapon 1 | . . 1 . . . . . . . . . . . . Parts Attached 232 | . 10 19 23 34 14 7 6 1 16 58 13 8 4 19 Power 16 | . 2 1 1 1 . . 1 . . 5 2 . . 3 Engine 3 | . . 1 1 1 . . . . . . . . . . Core 12 | . 2 . . . . . 1 . . 5 2 . . 2 Reactor 1 | . . . . . . . . . . . . . . 1 Propulsion 55 | . 4 3 5 6 2 . 2 . 4 22 3 . 1 3 Treads 9 | . 1 . 1 1 . . . . . 6 . . . . Leg 45 | . 3 3 4 5 2 . 2 . 4 16 2 . 1 3 Wheel 1 | . . . . . . . . . . . 1 . . . Hover . | . . . . . . . . . . . . . . . Flight . | . . . . . . . . . . . . . . . Utility 73 | . 1 10 5 15 6 . . . 5 12 5 6 2 6 Device 29 | . 1 5 3 6 1 . . . 1 5 2 2 1 2 Storage 6 | . . 1 1 . . . . . . 1 . 1 . 2 Processor 18 | . . 1 . 2 3 . . . 3 2 2 2 1 2 Hackware 4 | . . . . 1 . . . . . 2 . 1 . . Protection 16 | . . 3 1 6 2 . . . 1 2 1 . . . Artifact . | . . . . . . . . . . . . . . . Weapon 88 | . 3 5 12 12 6 7 3 1 7 19 3 2 1 7 Energy Gun . | . . . . . . . . . . . . . . . Energy Cannon 3 | . . . . . . . . . . 2 . . . 1 Ballistic Gun 49 | . 3 5 8 7 4 4 2 . 5 8 . 1 1 1 Ballistic Cannon 3 | . . . . . . . . . . 1 . 1 . 1 Launcher 7 | . . . 1 . 1 1 . 1 1 1 . . . 1 Special Weapon 2 | . . . . . . . . . . . . . . 2 Impact Weapon . | . . . . . . . . . . . . . . . Slashing Weapon 24 | . . . 3 5 1 2 1 . 1 7 3 . . 1 Piercing Weapon . | . . . . . . . . . . . . . . . Special Melee Weapon . | . . . . . . . . . . . . . . . Unidentified Prototypes 12 | . . 1 . . . . . . . 1 . 1 . 9 Corrupted Parts 1 | . . . . . . . . . 1 . . . . . System Corruption 3 | . . . . . . . . . 3 . . . . . Parts Lost 50 | . 1 2 6 1 3 1 . . 3 29 2 . 2 . Power 5 | . . . 1 . . . . . . 3 1 . . . Propulsion 14 | . 1 1 1 1 1 . . . 1 8 . . . . Utility 16 | . . 1 2 . 2 . . . . 9 . . 2 . Weapon 15 | . . . 2 . . 1 . . 2 9 1 . . . Highest Loss Streak 13 | . 1 1 4 1 3 1 . . 2 13 1 . 2 . To Critical Strikes . | . . . . . . . . . . . . . . . Average Slot Usage (%) 89 | . 94 99 96 99 93 100 100 100 99 87 16 64 72 86 Engine 3 | . 6 9 9 7 6 6 2 . . . . . . . Core 2 | . 8 1 . . . . 3 6 6 4 1 5 5 3 Treads 1 | . . . 1 1 . . . . . 9 . . . . Leg 19 | . 27 22 25 28 25 26 26 26 25 16 4 . 2 13 Wheel 1 | . . . . . . . . . . . . 5 5 5 Device 9 | . 9 10 20 7 4 6 6 6 5 3 1 10 14 15 Storage 6 | . 14 11 9 7 6 6 6 6 6 6 . 1 . 2 Processor 15 | . . 4 . 12 23 26 26 26 26 23 5 15 17 21 Hackware 2 | . . . . 6 . . . . . 2 . 4 5 5 Protection 4 | . . 6 3 2 5 6 6 6 6 2 . 5 5 2 Ballistic Gun 16 | . 28 33 22 16 19 17 18 20 19 10 . 3 3 4 Slashing Weapon 2 | . . . 2 4 . 2 1 . . 2 2 10 6 4 Naked Turns 136 | . . . . . . . . . . 26 110 . . . Heaviest Build 61 | 12 17 45 46 50 58 55 58 61 61 57 19 30 30 39 Greatest Support 150 | 20 26 26 40 65 70 70 75 75 75 150 128 28 28 60 Greatest Overweight (x) 1 | . . 1 1 1 . . . . . 1 1 1 1 1 Average Overweight (x) . | . . . . . . . . . . . . . 1 . Largest Inventory Capacity 15 | 8 8 15 15 15 15 15 15 15 15 15 5 5 5 5 Average Capacity 11 | 8 8 14 15 15 15 15 15 15 15 14 5 5 5 5 Most Carried 15 | 6 8 15 15 15 15 15 15 15 15 15 5 5 5 5 Average Carried 10 | 6 7 12 13 14 13 14 14 15 13 12 2 2 4 4 Final Capacity 15 | 8 8 15 15 15 15 15 15 15 15 5 5 5 5 5 Final Carried 15 | 6 8 15 14 15 15 15 15 15 13 5 1 5 5 5 Class Distribution -------------------- 19% | Mutant 18% | Scavenger-Mutant 17% | Derelict-Mutant 15% | Scavenger-Gunner 9% | Skirmisher 8% | Tank 3% | Gunner Dominant Class ---------------- Mutant | -10/Materials Tank | -9/Materials Skirmisher | -8/Materials Scavenger-Mutant | -7/Factory Scavenger-Gunner | -6/Factory Scavenger-Gunner | -6/Lower Caves Scavenger-Gunner | -6/Lower Caves Scavenger-Gunner | -6/Data Miner Gunner | -5/Proximity Caves Scavenger-Mutant | -5/Factory Mutant | -4/Factory Derelict-Mutant | -4/Upper Caves Derelict-Mutant | -4/Upper Caves Derelict-Mutant | -4/Warlord Resources | -11 -10 -9 -8 -7 -6 -6 -6 -6 -5 -5 -4 -4 -4 -4 ----------- Run | Yrd Mat Mat Mat Fac Fac Low Low Dat Pro Fac Fac Upp Upp War Matter Collected 6631 | 214 288 1307 728 527 552 556 167 . 412 1257 113 175 335 . Remotely 1933 | . . . . 102 166 556 167 . 399 543 . . . . Salvage Created 6859 | 96 384 1698 678 393 424 646 193 . 444 1445 113 64 160 121 Parts 333 | 5 23 103 35 23 16 24 11 . 25 46 8 1 8 5 Haulers Intercepted 5 | . 1 4 . . . . . . . . . . . . Recyclers Shooed 7 | 1 . 3 . . 1 . . . . 2 . . . . Parts Field Recycled . | . . . . . . . . . . . . . . . Retrieved Matter . | . . . . . . . . . . . . . . . Parts Self-Destructed 48 | . . . . . . 16 10 . 17 . . . 5 . Prevented 3 | . . . . . . . . . 1 . . . 2 . Kills | -11 -10 -9 -8 -7 -6 -6 -6 -6 -5 -5 -4 -4 -4 -4 ------- Run | Yrd Mat Mat Mat Fac Fac Low Low Dat Pro Fac Fac Upp Upp War Combat Hostiles Destroyed 102 | . 7 28 15 6 2 7 3 . 7 21 2 . 4 . Melee 3 | . . . . . . . . . . 1 2 . . . Guns 89 | . 7 28 13 6 2 7 3 . 4 17 . . 2 . Cannons 3 | . . . . . . . . . . 1 . . 2 . AOE 7 | . . . 2 . . . . . 3 2 . . . . Classes Destroyed 16 | 2 3 6 2 1 . 1 . . 1 . . . . . Worker 6 | . . 4 1 . 1 . . . . . . . . . Builder 3 | . . 1 1 . . . . . . 1 . . . . Tunneler 2 | 1 . 1 . . . . . . . . . . . . Hauler 5 | . 1 4 . . . . . . . . . . . . Recycler 7 | 1 . 2 . 1 2 . . . . 1 . . . . Minesweeper 1 | . . . . . . . . . 1 . . . . . Operator 3 | . . 3 . . . . . . . . . . . . Watcher 6 | . 2 2 . 1 . . . . . 1 . . . . Swarmer 11 | . . 3 . . . . . . 4 . . . 4 . Grunt 52 | . 7 17 10 2 . 5 . . 1 10 . . . . Brawler 4 | . . 1 1 . . 1 . . . 1 . . . . Duelist 3 | . . . 1 1 . . . . . 1 . . . . Sentry 13 | . . 7 2 1 . . 1 . . 2 . . . . Hunter 9 | . . . 1 . 2 . 2 . . 4 . . . . Programmer 10 | . . . . 2 . 1 . . 2 3 2 . . . Decomposer 2 | . . . . . . . . . . . . 2 . . Samaritan 4 | . . . . . . 3 . . 1 . . . . . Best Kill Streak 9 | 2 2 9 6 2 5 3 2 . 4 4 1 . 4 . Combat Bots Only 6 | . 2 3 6 2 2 3 2 . 4 4 1 . 4 . Max Kills in Single Turn 5 | 1 1 2 5 1 1 1 1 . 3 2 1 1 1 . Gunslinging 1 | . . 1 . . . . . . . 1 . . . . Exploded 3 | . . . 2 . . . . . 3 1 . . . . Melee 1 | . . . . . . . . . . 1 1 . . . Uniques/NPCs Destroyed . | . . . . . . . . . . . . . . . Combat | -11 -10 -9 -8 -7 -6 -6 -6 -6 -5 -5 -4 -4 -4 -4 -------- Run | Yrd Mat Mat Mat Fac Fac Low Low Dat Pro Fac Fac Upp Upp War Hostile Shots Fired 927 | . 38 101 86 45 54 38 48 . 35 304 107 . 43 28 Missed 277 | . 8 18 15 19 12 17 20 . 8 87 49 . 14 10 Damage Taken 12231 | . 415 1065 1119 485 712 385 335 . 525 5054 1210 . 463 463 Core 2475 | . 69 178 109 8 33 15 28 . 44 831 989 . 80 91 Absorbed by Shields 34 | . . . . . . . . . . . . . . 34 Redirected to Shielding 112 | . . . . . . . . . . 112 . . . . Regen/Repaired (Parts) 476 | . . . . . . . . . . 236 . . . 240 Core Remaining (%) 72 | 100 72 55 80 98 . . . . 85 16 . . . . Volleys Fired 385 | 7 40 86 41 18 15 31 7 . 21 96 . 7 16 . Largest 3 | 2 2 3 3 3 3 3 3 . 3 3 . 1 2 . Hottest 125 | 40 46 69 80 75 78 78 88 . 89 125 . 57 85 . Shots Fired 974 | 14 80 257 121 54 42 93 21 . 60 200 . 7 25 . Gun 927 | 14 80 257 117 54 42 93 21 . 59 181 . . 9 . Cannon 42 | . . . . . . . . . . 19 . 7 16 . Launcher 5 | . . . 4 . . . . . 1 . . . . . Special . | . . . . . . . . . . . . . . . Kinetic 967 | 14 80 257 117 54 42 93 21 . 59 198 . 7 25 . Thermal . | . . . . . . . . . . . . . . . Explosive 5 | . . . 4 . . . . . 1 . . . . . Electromagnetic 2 | . . . . . . . . . . 2 . . . . Robot Hit Streak 31 | 3 15 21 7 31 9 10 11 . 10 21 . . 3 . Robot Miss Streak 4 | 2 2 3 4 1 2 2 2 . 3 3 . . 3 . Penetration Max 1 | . . . . . . . . . . 1 . . . . Secondary Targets 11 | . . 2 2 . 1 1 1 . 1 3 . . . . Max Gunslinging Chain 1 | . . 1 1 . 1 1 1 . 1 1 . . . . Shots Hit Robots 687 | 7 67 160 71 43 25 67 16 . 36 164 9 7 10 5 Core Hits 285 | 3 24 64 39 20 15 29 7 . 15 57 3 2 5 2 Critical Kills 15 | . . . . . . . 2 . 3 10 . . . . Critical Parts Destroyed 19 | . 1 2 1 . . . . . 2 13 . . . . Critical Strikes 37 | . 1 2 1 . . . 2 . 5 25 . . . 1 Destroy 35 | . 1 2 1 . . . 2 . 5 24 . . . . Blast 1 | . . . . . . . . . . 1 . . . . Sever 1 | . . . . . . . . . . . . . . 1 Melee Attacks 165 | . . . 4 35 . 2 3 . 2 62 15 26 7 9 Impact . | . . . . . . . . . . . . . . . Slashing 165 | . . . 4 35 . 2 3 . 2 62 15 26 7 9 Piercing . | . . . . . . . . . . . . . . . Sneak Attacks 5 | . . . . . . . . . . 1 . 4 . . Combat Hostiles . | . . . . . . . . . . . . . . . Follow-up Attacks . | . . . . . . . . . . . . . . . Damage Inflicted 13796 | 58 587 2537 1593 763 389 1269 217 . 935 3748 355 488 436 421 Guns 9868 | 58 587 2537 1162 763 389 1220 217 . 563 2296 . . 76 . Cannons 740 | . . . . . . . . . . 537 . . 203 . Explosions 1463 | . . . 431 . . . . . 253 779 . . . . Melee 1703 | . . . . . . 49 . . 119 136 333 488 157 421 Ramming 22 | . . . . . . . . . . . 22 . . . Kinetic 10588 | 58 587 2537 1162 763 389 1220 217 . 563 2813 . . 279 . Thermal 683 | . . . . . . . . . . 683 . . . . Explosive 780 | . . . 431 . . . . . 253 96 . . . . Electromagnetic 20 | . . . . . . . . . . 20 . . . . Impact . | . . . . . . . . . . . . . . . Slashing 1703 | . . . . . . 49 . . 119 136 333 488 157 421 Piercing . | . . . . . . . . . . . . . . . Highest Corruption 24 | . . . . 3 . . . . 9 24 1 1 1 1 Average Corruption 5 | . . . . 2 . . . . 5 13 1 1 1 1 Corruption Purged 13 | . . . . . . . . . . 13 . . . . Corruption Blocked . | . . . . . . . . . . . . . . . Effects 95 | . . . . 13 . . . . 23 54 . 3 1 1 Message Errors 20 | . . . . 2 . . . . 5 10 . 2 1 . Matter Fused 20 | . . . . 3 . . . . 5 10 . 1 . 1 Heat Flow Errors 14 | . . . . 2 . . . . 3 9 . . . . Energy Discharges 11 | . . . . 2 . . . . 1 8 . . . . Parts Rejected 2 | . . . . . . . . . . 2 . . . . Data Loss (minor) 9 | . . . . 3 . . . . . 6 . . . . Data Loss (major) 1 | . . . . . . . . . 1 . . . . . Misfires 8 | . . . . . . . . . 7 1 . . . . Alerts 3 | . . . . 1 . . . . . 2 . . . . Misdirections 1 | . . . . . . . . . . 1 . . . . Weapon Failures 6 | . . . . . . . . . 1 5 . . . . Overload Shots . | . . . . . . . . . . . . . . . Overflow Damage 604 | . . . . . . . . . 76 239 7 191 91 . Projectiles 21 | . . . . . . . . . . . . . 21 . Explosions 246 | . . . . . . . . . 23 223 . . . . Melee 337 | . . . . . . . . . 53 16 7 191 70 . Knockbacks 5 | . . . . . . . . . . 4 . . 1 . Impact . | . . . . . . . . . . . . . . . Kinetic 5 | . . . . . . . . . . 4 . . 1 . Secondary . | . . . . . . . . . . . . . . . Self-Inflicted Damage 77 | . . . . . . . . . . 68 9 . . . Shots 1 | . . . . . . . . . . 1 . . . . Rammed 6 | . . . . . . . . . . . 6 . . . Targets Rammed 6 | . . . . . . . . . . . 6 . . . Kicked . | . . . . . . . . . . . . . . . Crushed . | . . . . . . . . . . . . . . . Highest Temperature 472 | . 31 242 396 273 44 168 73 . 255 472 . . . . Average Temperature 71 | . 9 50 189 69 16 56 30 . 54 83 . . . . Received Heat Transfer 2494 | . 249 438 675 72 12 162 48 . 9 591 229 . . 9 Effects 10 | . . 1 2 1 . . . . 2 4 . . . . Energy Bleed 2 | . . 1 . 1 . . . . . . . . . . Interference 5 | . . . . . . . . . 2 3 . . . . Matter Decay 1 | . . . 1 . . . . . . . . . . . Short Circuit 1 | . . . 1 . . . . . . . . . . . Damage (minor) 1 | . . . . . . . . . . 1 . . . . Siege Activations . | . . . . . . . . . . . . . . . Robots Corrupted . | . . . . . . . . . . . . . . . Combat Hostiles . | . . . . . . . . . . . . . . . Parts Fried 1 | . . . . . . . . . 1 . . . . . Impact Corruptions . | . . . . . . . . . . . . . . . Robots Melted . | . . . . . . . . . . . . . . . Combat Hostiles . | . . . . . . . . . . . . . . . Parts Melted . | . . . . . . . . . . . . . . . Heat Transferred 550 | . . . . . . . . . . 550 . . . . Parts Sabotaged . | . . . . . . . . . . . . . . . Parts Stolen . | . . . . . . . . . . . . . . . Parts Stripped . | . . . . . . . . . . . . . . . Power Chain Reactions . | . . . . . . . . . . . . . . . Missiles Intercepted . | . . . . . . . . . . . . . . . Alert | -11 -10 -9 -8 -7 -6 -6 -6 -6 -5 -5 -4 -4 -4 -4 ------- Run | Yrd Mat Mat Mat Fac Fac Low Low Dat Pro Fac Fac Upp Upp War Peak Influence 562 | 10 200 562 531 297 80 . . . . 539 402 . . . Initial 241 | . 6 67 226 241 6 . . . . . 222 . . . Average 193 | 6 85 225 401 107 36 . . . . 227 272 . . . Maximum Alert Level 2 | . 1 2 2 1 . . . . . 2 2 . . . Low Security (%) 56 | 100 93 50 . 80 100 . . . . 45 13 . . . Level 1 31 | . 6 27 51 19 . . . . . 46 67 . . . Level 2 12 | . . 21 48 . . . . . . 7 19 . . . Level 3 . | . . . . . . . . . . . . . . . Level 4 . | . . . . . . . . . . . . . . . Level 5 . | . . . . . . . . . . . . . . . High Security . | . . . . . . . . . . . . . . . Max Security . | . . . . . . . . . . . . . . . Squads Dispatched 23 | . 3 4 3 4 . . . . . 8 1 . . . Investigation 8 | . 2 1 2 1 . . . . . 2 . . . . Extermination 7 | . . . . 3 . . . . . 3 1 . . . Reinforcement 8 | . 1 3 1 . . . . . . 3 . . . . Assault . | . . . . . . . . . . . . . . . Garrison . | . . . . . . . . . . . . . . . Intercept . | . . . . . . . . . . . . . . . Searches Triggered 1 | . . . . . . . . . . . 1 . . . Construction Impeded 2 | . . . 1 . . . . . . 1 . . . . Haulers Reinforced . | . . . . . . . . . . . . . . . Active Scanning Responses . | . . . . . . . . . . . . . . . Cargo Convoy Interrupts . | . . . . . . . . . . . . . . . Stealth | -11 -10 -9 -8 -7 -6 -6 -6 -6 -5 -5 -4 -4 -4 -4 --------- Run | Yrd Mat Mat Mat Fac Fac Low Low Dat Pro Fac Fac Upp Upp War Distress Signals 9 | . . 5 1 . . . . . . 2 . . . 1 Communications Jammed . | . . . . . . . . . . . . . . . Distress Signals . | . . . . . . . . . . . . . . . Times Spotted 220 | . 12 49 22 12 5 7 3 . 8 45 16 . 5 36 Peak Tracking Total 18 | . 2 4 8 4 4 3 2 . 4 13 9 . 4 18 Tactical Retreats 21 | . . . 1 3 . . . . 1 5 4 . 1 6 Traps | -11 -10 -9 -8 -7 -6 -6 -6 -6 -5 -5 -4 -4 -4 -4 ------- Run | Yrd Mat Mat Mat Fac Fac Low Low Dat Pro Fac Fac Upp Upp War Traps Triggered 3 | . . 1 . 1 1 . . . . . . . . . Indirectly . | . . . . . . . . . . . . . . . Trap Hack Attempts . | . . . . . . . . . . . . . . . Triggered . | . . . . . . . . . . . . . . . Disarmed . | . . . . . . . . . . . . . . . Reprogrammed . | . . . . . . . . . . . . . . . Reused . | . . . . . . . . . . . . . . . Traps Extracted . | . . . . . . . . . . . . . . . Installed . | . . . . . . . . . . . . . . . Triggered 20 | . . . . . . . . . 1 . . . 2 17 Machines | -11 -10 -9 -8 -7 -6 -6 -6 -6 -5 -5 -4 -4 -4 -4 ---------- Run | Yrd Mat Mat Mat Fac Fac Low Low Dat Pro Fac Fac Upp Upp War Machines Disabled 15 | . . . 1 . . . . . . 13 . 1 . . Max in Single Turn 5 | . . . 1 . . . . . . 5 . 1 . . Garrison Access 1 | . . . 1 . . . . . . . . . . . Machines Repaired . | . . . . . . . . . . . . . . . Machines Dismantled . | . . . . . . . . . . . . . . . Machines Sabotaged . | . . . . . . . . . . . . . . . Overloaded Fab Kills . | . . . . . . . . . . . . . . . Hacking | -11 -10 -9 -8 -7 -6 -6 -6 -6 -5 -5 -4 -4 -4 -4 --------- Run | Yrd Mat Mat Mat Fac Fac Low Low Dat Pro Fac Fac Upp Upp War Machines Accessed 42 | . 7 7 5 3 1 . 1 4 1 5 2 1 . 5 Terminals 21 | . 5 6 3 1 1 . . . 1 2 2 . . . Fabricators 2 | . . . . . . . . . . 2 . . . . Repair Stations 1 | . . . . . . . . . . 1 . . . . Recycling Units 4 | . 2 1 1 . . . . . . . . . . . Scanalyzers 1 | . . . . 1 . . . . . . . . . . Garrison Access 2 | . . . 1 1 . . . . . . . . . . Total Hacks 116 | . 11 20 12 5 3 . 1 28 2 16 5 1 . 12 Successful 75 | . 4 13 2 . 1 . 1 28 2 9 2 1 . 12 Failed 40 | . 7 6 10 5 2 . . . . 7 3 . . . Catastrophic 7 | . 1 2 2 1 . . . . . 1 . . . . Database Lockouts 1 | . . 1 . . . . . . . . . . . . Manual 32 | . 6 14 4 1 . . . . . 5 1 . . 1 Terminals 52 | . 9 18 8 2 3 . . . 2 5 5 . . . Fabricators 6 | . . . . . . . . . . 6 . . . . Repair Stations 5 | . . . . . . . . . . 5 . . . . Recycling Units 5 | . 2 2 1 . . . . . . . . . . . Scanalyzers 1 | . . . . 1 . . . . . . . . . . Garrison Access 5 | . . . 3 2 . . . . . . . . . . Terminal Hacks 59 | . 2 9 . . 1 . 1 28 2 1 2 1 . 12 Record 25 | . . . . . . . . 11 2 . 1 1 . 10 Part Schematic 9 | . . . . . . . . 9 . . . . . . Robot Schematic 5 | . . . . . . . . 5 . . . . . . Robot Analysis 1 | . . 1 . . . . . . . . . . . . Prototype ID Bank 4 | . . 1 . . . . . 3 . . . . . . Open Door 3 | . . . . . . . 1 . . . . . . 2 Level Access Points 1 | . . 1 . . . . . . . . . . . . Branch Access Points 3 | . 1 . . . . . . . . 1 1 . . . Terminal Index 1 | . . 1 . . . . . . . . . . . . Unreport Threat 1 | . . . . . 1 . . . . . . . . . Locate Traps 1 | . . 1 . . . . . . . . . . . . Dispatch Records 1 | . . 1 . . . . . . . . . . . . Hauler Manifests 2 | . 1 1 . . . . . . . . . . . . Registered Components 1 | . . 1 . . . . . . . . . . . . Zone Layout 1 | . . 1 . . . . . . . . . . . . Fabricator Hacks 2 | . . . . . . . . . . 2 . . . . Load Schematic 1 | . . . . . . . . . . 1 . . . . Build 1 | . . . . . . . . . . 1 . . . . Repair Station Hacks 4 | . . . . . . . . . . 4 . . . . Scan Component 2 | . . . . . . . . . . 2 . . . . Repair 2 | . . . . . . . . . . 2 . . . . Recycling Unit Hacks . | . . . . . . . . . . . . . . . Scanalyzer . | . . . . . . . . . . . . . . . Garrison Access Hacks 1 | . . . 1 . . . . . . . . . . . Seal Access 1 | . . . 1 . . . . . . . . . . . Unauthorized Hacks 9 | . 2 4 1 . . . . . . 2 . . . . Terminals 4 | . . 3 . . . . . . . 1 . . . . Botnet 4 | . . 3 . . . . . . . 1 . . . . Fabricators 1 | . . . . . . . . . . 1 . . . . Liberate 1 | . . . . . . . . . . 1 . . . . Repair Stations . | . . . . . . . . . . . . . . . Recycling Units 4 | . 2 1 1 . . . . . . . . . . . Tunnel 4 | . 2 1 1 . . . . . . . . . . . Scanalyzers . | . . . . . . . . . . . . . . . Garrison Access . | . . . . . . . . . . . . . . . Data Cores Recovered . | . . . . . . . . . . . . . . . Used . | . . . . . . . . . . . . . . . Hacking Detections 27 | . 5 6 4 3 1 . . . 1 5 2 . . . Full Trace Events 5 | . . . 2 1 . . . . . 2 . . . . Feedback Events . | . . . . . . . . . . . . . . . Feedback Blocked . | . . . . . . . . . . . . . . . Robot Schematics Acquired 5 | . . . . . . . . 5 . . . . . . Robots Built . | . . . . . . . . . . . . . . . Authchips . | . . . . . . . . . . . . . . . Time . | . . . . . . . . . . . . . . . Total Robot Build Rating . | . . . . . . . . . . . . . . . Part Schematics Acquired 9 | . . . . . . . . 9 . . . . . . Parts Built 1 | . . . . . . . . . . 1 . . . . Authchips . | . . . . . . . . . . . . . . . Time 169 | . . . . . . . . . . 169 . . . . Total Part Build Rating 6 | . . . . . . . . . . 6 . . . . Parts Repaired 2 | . . . . . . . . . . 2 . . . . Time 82 | . . . . . . . . . . 82 . . . . Parts Recycled . | . . . . . . . . . . . . . . . Recycled Matter . | . . . . . . . . . . . . . . . Retrieved Matter . | . . . . . . . . . . . . . . . Retrieved Components . | . . . . . . . . . . . . . . . Parts Scanalyzed . | . . . . . . . . . . . . . . . Part Schematics Acquired . | . . . . . . . . . . . . . . . Parts Damaged . | . . . . . . . . . . . . . . . Bothacking | -11 -10 -9 -8 -7 -6 -6 -6 -6 -5 -5 -4 -4 -4 -4 ------------ Run | Yrd Mat Mat Mat Fac Fac Low Low Dat Pro Fac Fac Upp Upp War Used RIF Installer . | . . . . . . . . . . . . . . . Robots Hacked . | . . . . . . . . . . . . . . . Non-combat . | . . . . . . . . . . . . . . . Combat . | . . . . . . . . . . . . . . . Robot Hacks Applied . | . . . . . . . . . . . . . . . Relay Couplers Released . | . . . . . . . . . . . . . . . Fabnet Peak Effective % . | . . . . . . . . . . . . . . . Robots Rewired 5 | . . . . . . . . . . . . . . 5 Allies Hacked . | . . . . . . . . . . . . . . . Hacks Repelled . | . . . . . . . . . . . . . . . Allies | -11 -10 -9 -8 -7 -6 -6 -6 -6 -5 -5 -4 -4 -4 -4 -------- Run | Yrd Mat Mat Mat Fac Fac Low Low Dat Pro Fac Fac Upp Upp War Total Allies 5 | . . . . . . . . . . . . . . 5 Largest Group 5 | . . . . . . . . . . . . . . 5 Highest-Rated Group 282 | . . . . . . . . . . . . . . 282 Highest-Rated Ally 65 | . . . . . . . . . . . . . . 65 Total Orders 3 | . . . . . . . . . . . . . . 3 STAY 2 | . . . . . . . . . . . . . . 2 FOLLOW 1 | . . . . . . . . . . . . . . 1 Ally Attacks 11 | . . . . . . . . . . . . . . 11 Total Damage 924 | . . . . . . . . . . . . . . 924 Kills 5 | . . . . . . . . . . . . . . 5 Allies Corrupted . | . . . . . . . . . . . . . . . Allies Melted 1 | . . . . . . . . . . . . . . 1 Intel | -11 -10 -9 -8 -7 -6 -6 -6 -6 -5 -5 -4 -4 -4 -4 ------- Run | Yrd Mat Mat Mat Fac Fac Low Low Dat Pro Fac Fac Upp Upp War Robot Analysis Total 1 | . . 1 . . . . . . . . . . . . Derelict Logs Recovered 7 | . . . . . . 2 1 . 2 . . 1 1 . Drone Launches . | . . . . . . . . . . . . . . . Drone Recoveries . | . . . . . . . . . . . . . . . Decoded 0b10 Intel 87 | . . . . . . . . . . 87 . . . . Items 87 | . . . . . . . . . . 87 . . . . Exploration | -11 -10 -9 -8 -7 -6 -6 -6 -6 -5 -5 -4 -4 -4 -4 ------------- Run | Yrd Mat Mat Mat Fac Fac Low Low Dat Pro Fac Fac Upp Upp War Turns Passed 12969 | 31 775 1734 720 2029 202 760 828 126 813 1605 461 801 941 1143 Spaces Moved 7841 | 11 480 739 289 882 112 536 644 100 555 854 601 697 548 793 Core 606 | . . . . . . . . . . 110 496 . . . Treads 221 | . 6 . . . . . . . . 215 . . . . Legs 5382 | 11 474 739 289 882 112 536 644 100 555 529 51 . 247 213 Wheels 1632 | . . . . . . . . . . . 54 697 301 580 Hover . | . . . . . . . . . . . . . . . Flight . | . . . . . . . . . . . . . . . Fastest Speed 50 | 120 120 120 120 120 122 122 122 125 125 50 50 100 115 100 Average Speed 127 | 120 120 179 166 136 122 122 122 125 125 122 62 102 148 130 Slowest Speed 240 | 120 160 190 190 193 123 122 125 125 126 240 120 115 190 190 Overloaded Moves . | . . . . . . . . . . . . . . . Propulsion Burnouts . | . . . . . . . . . . . . . . . Robots Hopped . | . . . . . . . . . . . . . . . Cave-ins Triggered 2 | . . . . . . . . . . 2 . . . . Exploration Rate (%) 51 | 3 73 66 24 28 4 62 74 75 68 27 18 85 65 94 Regions Visited 14 Branch Regions 7 Pre-discovered Areas 10 | . 2 1 1 . . . . 1 2 . . 1 . 2 Known Exits Taken 9 | . . 1 . 1 1 1 1 1 1 1 1 . . . Unknown Exits Taken 5 | 1 1 . 1 . . . . . . . . 1 1 . Scrap Searched 11 | . . . . . . . 2 . 2 . . 4 3 . Spaces Dug 134 | . . . 4 33 . 1 3 . 17 53 . 16 7 . Terrain Destroyed 263 | . . . 36 33 . 1 4 . 18 130 . 22 19 . Melee 111 | . . . 4 33 . 1 3 . . 53 . 12 5 . Projectile 30 | . . . . . . . 1 . . 5 . 10 14 . AOE 120 | . . . 32 . . . . . 17 71 . . . . Terrain Rammed . | . . . . . . . . . . . . . . . Walls Destroyed . | . . . . . . . . . . . . . . . Machines Disabled . | . . . . . . . . . . . . . . . Actions | -11 -10 -9 -8 -7 -6 -6 -6 -6 -5 -5 -4 -4 -4 -4 --------- Run | Yrd Mat Mat Mat Fac Fac Low Low Dat Pro Fac Fac Upp Upp War Total 9894 | 17 617 1006 453 1615 147 580 668 100 630 1141 660 736 638 886 Wait 1058 | . 68 138 77 614 . . . . 29 44 24 . 59 5 Move 7827 | 10 479 738 288 881 111 535 643 99 554 853 600 696 547 793 Hop . | . . . . . . . . . . . . . . . Pick Up 77 | . 7 14 6 14 3 3 3 . 1 13 3 2 3 5 Fast Attach 84 | . 3 4 5 5 6 . . . 6 25 7 8 3 12 Attach 53 | . 1 4 7 6 3 1 . . 3 20 6 . . 2 Detach 27 | . 1 3 5 3 1 . . . 4 5 . 1 . 4 Swap 96 | . 6 11 11 23 5 6 6 1 7 13 . 1 1 5 Drop 84 | . 12 8 9 16 3 2 6 . 3 10 . . 2 13 Fire 385 | 7 40 86 41 18 15 31 7 . 21 96 . 7 16 . Melee 159 | . . . 4 35 . 2 3 . 2 62 14 21 7 9 Ram 6 | . . . . . . . . . . . 6 . . . Kick . | . . . . . . . . . . . . . . . Crush . | . . . . . . . . . . . . . . . Escape Stasis . | . . . . . . . . . . . . . . . Rewire 38 | . . . . . . . . . . . . . . 38 Trap . | . . . . . . . . . . . . . . . Miscellaneous . | . . . . . . . . . . . . . . . Route ------- -11/Scrapyard -10/Materials (discovered 3 exits: *Mat x2 / *Min) -9/Materials (discovered 4 exits: *Mat x3 / [*Min]) -8/Materials -7/Factory (discovered 2 exits: *Fac x2) -6/Factory -6/Lower Caves -6/Lower Caves (discovered 2 exits: *Fac / *Dat) -6/Data Miner -5/Proximity Caves -5/Factory (discovered 3 exits: *Fac / Upp x2) -4/Factory (discovered 2 exits: *Upp x2) -4/Upper Caves -4/Upper Caves (discovered 2 exits: [*Res] / *War) -4/Warlord (discovered 1 exit: [*Pro]) History --------- Turn | Location | Event 20 | -11/Scrapyard | Discovered new exit (range 3) 32 | -11/Scrapyard | Entered Materials 61 | -10/Materials | Identified exit to Mines 303 | -10/Materials | Build established: Mutant 538 | -10/Materials | Discovered new exit (range 10) 667 | -10/Materials | Discovered new exit (range 15) 807 | -10/Materials | Entered another Materials area 807 | -9/Materials | Evolved 2 slots: Utility x1, Weapon x1 877 | -9/Materials | Identified exit to Materials 1124 | -9/Materials | Build established: Skirmisher 1267 | -9/Materials | Discovered new exit (range 15) 1440 | -9/Materials | Central database locked down 1589 | -9/Materials | Build established: Tank 2541 | -9/Materials | Entered another Materials area 2541 | -8/Materials | Evolved 2 slots: Propulsion x1, Utility x1 2857 | -8/Materials | Build established: Skirmisher 3104 | -8/Materials | Lost 4 parts (1n1u2w) 3198 | -8/Materials | Discovered new exit (range 16) 3261 | -8/Materials | Entered Factory 3261 | -7/Factory | Evolved 2 slots: Propulsion x1, Utility x1 3905 | -7/Factory | Found Powered Armor 4016 | -7/Factory | Build established: Scavenger-Mutant 4525 | -7/Factory | Discovered new exit (range 9) 4572 | -7/Factory | Identified exit to Factory 5242 | -7/Factory | Discovered exit to Factory (range 13) 5290 | -7/Factory | Entered another Factory area 5290 | -6/Factory | Evolved 2 slots: Utility x2 5398 | -6/Factory | Lost 3 parts (1n2u) 5458 | -6/Factory | Discovered new exit (range 12) 5487 | -6/Factory | Identified exit to Lower Caves 5492 | -6/Factory | Entered Lower Caves 5516 | -6/Lower Caves | Identified exit to Lower Caves 5692 | -6/Lower Caves | Spotted B-75 Beast 5940 | -6/Lower Caves | Encountered a Warlord checkpoint 5972 | -6/Lower Caves | Build established: Scavenger-Gunner 5996 | -6/Lower Caves | Learned Factory garrison access intel 6252 | -6/Lower Caves | Entered another Lower Caves area 6254 | -6/Lower Caves | Attracted the attention of an 0b10 checkpoint 6362 | -6/Lower Caves | Discovered new exit (range 9) 6375 | -6/Lower Caves | Identified exit to Factory 6973 | -6/Lower Caves | Encountered a Warlord checkpoint 6974 | -6/Lower Caves | Discovered new exit (range 5) 6977 | -6/Lower Caves | Identified exit to Data Miner 7031 | -6/Lower Caves | Learned Factory emergency access door positions 7080 | -6/Lower Caves | Entered Data Miner 7080 | -6/Data Miner | Discovered new exit (range 6) 7088 | -6/Data Miner | Identified exit to Proximity Caves 7105 | -6/Data Miner | Met Data Miner 7149 | -6/Data Miner | Learned location of Section 7 (-2) 7149 | -6/Data Miner | Acquired the access code to Warlord's prototype stash 7175 | -6/Data Miner | Received God Mode back door access code from Data Miner 7206 | -6/Data Miner | Entered Proximity Caves 7329 | -5/Proximity Caves | Learned location of Armory (-3) 7661 | -5/Proximity Caves | Build established: Gunner 7939 | -5/Proximity Caves | Learned location of Warlord (-4) 8010 | -5/Proximity Caves | Discovered exit to Factory (range 6) 8019 | -5/Proximity Caves | Entered Factory 8019 | -5/Factory | Evolved 2 slots: Propulsion x1, Utility x1 8021 | -5/Factory | Loaded intel: 4 garrison access locations 8163 | -5/Factory | Repaired Imp. Carbon-fiber Leg 8204 | -5/Factory | Repaired Titanium Leg? 8225 | -5/Factory | Fabricated Enh. Flexi-carbon Leg? 8637 | -5/Factory | Crushed by falling debris 8637 | -5/Factory | System corruption reached 10% 8640 | -5/Factory | Crushed by falling debris 8671 | -5/Factory | Lost 4 parts (1n3u) 8754 | -5/Factory | Build established: Scavenger-Mutant 8877 | -5/Factory | Lost 3 parts (1n2w) 9210 | -5/Factory | Lost 5 parts (1p2u2w) 9306 | -5/Factory | Identified exit to Upper Caves 9448 | -5/Factory | Build established: Mutant 9552 | -5/Factory | Released all parts (12) 9554 | -5/Factory | Core integrity fell below 50% 9581 | -5/Factory | Spotted B-75 Beast 9583 | -5/Factory | Lost 13 parts (1p5n3u4w) 9601 | -5/Factory | Discovered new exit (range 15) 9609 | -5/Factory | Core integrity fell below 20% 9623 | -5/Factory | Identified exit to Factory 9624 | -5/Factory | Entered another Factory area 9624 | -4/Factory | Evolved 2 slots: Propulsion x1, Utility x1 9690 | -4/Factory | Released all parts (8) 9746 | -4/Factory | Core integrity fell below 50% 9782 | -4/Factory | Identified exit to Upper Caves 9902 | -4/Factory | Search patrols dispatched 9981 | -4/Factory | Core integrity fell below 20% 10085 | -4/Factory | Entered Upper Caves 10450 | -4/Upper Caves | Found Alien Artifact 10450 | -4/Upper Caves | Identified Dimensional Node Initializer 10450 | -4/Upper Caves | Initialized slip node 10489 | -4/Upper Caves | Spotted B-86 Titan 10727 | -4/Upper Caves | Build established: Derelict-Mutant 10851 | -4/Upper Caves | Discovered new exit (range 17) 10886 | -4/Upper Caves | Entered another Upper Caves area 10926 | -4/Upper Caves | Discovered new exit (range 14) 11567 | -4/Upper Caves | Learned Research trap positions 11734 | -4/Upper Caves | Discovered new exit (range 15) 11827 | -4/Upper Caves | Entered Warlord 11949 | -4/Warlord | Discovered new exit (range 9) 12054 | -4/Warlord | System corruption cleaned by Quarantine Array 12189 | -4/Warlord | Learned 4 Research zone layouts 12189 | -4/Warlord | Learned 4 Testing zone layouts 12189 | -4/Warlord | Learned 4 Quarantine zone layouts 12191 | -4/Warlord | Learned Testing emergency access door positions 12191 | -4/Warlord | Learned Quarantine emergency access door positions 12348 | -4/Warlord | Met Warlord 12358 | -4/Warlord | Opened Warlord's prototype stash 12373 | -4/Warlord | Warlord's base attacked by MAIN.C 12373 | -4/Warlord | Found Prototype Processor 12373 | -4/Warlord | Identified Exp. Targeting Computer 12379 | -4/Warlord | Found Prototype Processor 12379 | -4/Warlord | Identified Spectral Analyzer 12386 | -4/Warlord | Found Prototype Device 12387 | -4/Warlord | Identified System Purifier 12498 | -4/Warlord | Found Prototype Energy Cannon 12504 | -4/Warlord | Found Prototype Launcher 12504 | -4/Warlord | Identified Vortex Catalyst Activator 12505 | -4/Warlord | Identified Vortex Cannon 12589 | -4/Warlord | Found Prototype Special Weapon 12589 | -4/Warlord | Identified RU-N14's Throwing Claymores v3 12597 | -4/Warlord | Found RU-N14's Throwing Claymores v3 12601 | -4/Warlord | Found RU-N14's Throwing Claymores v3 12616 | -4/Warlord | Found RU-N14's Throwing Claymores v3 12723 | -4/Warlord | Warlord forces counterattacked 12753 | -4/Warlord | Opened side exit 12785 | -4/Warlord | Spotted Executioner 12832 | -4/Warlord | Lost 5 allies 12919 | -4/Warlord | Lost 4 allies 12970 | -4/Warlord | Spotted Executioner 12970 | -4/Warlord | Destroyed by P-70 Sage with Tesla Rifle Last Messages --------------- 12814_ H-77 Assassin system terminally corrupted. 12815_ Penetrated by Slug. 12815_ Slug penetrates Wall. 12815_ Penetrated by Slug. 12826_ Slug penetrates Wall. 12860_ B-60 Warrior overheating. 12862_ B-60 Warrior heat damages Imp. Medium Armor Plating. 12862_ B-60 Warrior system terminally corrupted. 12863_ ANNOUNCEMENT: MAIN.C reinforcements approaching through caves, arriving soon. 12868_ KF-0IY(M) heat short circuits Imp. Medium Treads. 12868_ G-67 Veteran knocked back. 12869_ KF-0IY(M) heat spikes uncontrollably. 12869_ KF-0IY(M) critical meltdown. 12871_ G-67 Veteran shuts down. 12872_ G-67 Veteran knocked back. 12873_ ANNOUNCEMENT: Detected 2 Mixed squads, 1 Programmer squad, 1 Grunt squad, with prototype support. 12963_ ANNOUNCEMENT: MAIN.C reinforcements approaching through caves, arriving soon. Map ----- +----------------------------------------------------+ | | | | | | | | | | | | | #########????????????????????????????????????????? | | #?????????#??????????????????????????????? | | #??????????#??????????#??????????????????? | | #???#??????#?????######?#????????????????? | | #??###????#??????"" #?????????????????#?? | | ###+######## ##########?""" #???????????????????? | | #?# ^ #?""" #?????????#?????????? | | # ^^ # #???????????????????? | | # # ##????#?????????????? | | + / #?????????#????????#? | | #+################# ###########????????????????? | | # ??????????????# # #????#??????????#? | | # ##??#??#?????# # #????????????????? | | #?# #????????????# # #????????????????? | | ??# #????????#?### # #?????#?????#??#?? | | ??######????#####?# # """" #?#?????????????#? | | ????#??????##"!!!## + """" #????????????????? | | ??????##???#" # # """" #?##?????????????? | | ############"X + # """" #?#???#??????????? | | """"""""""##" X"## ###@##############?#???#?#?? | | """""""##!!"""?# ## #??????#??# | | "X ""##!!"""?# gg ## """"" #??????#??? | | ""######??# "" ## """"" ##???#????? | | ""##??#???# "" ## """"" #???#?#???? | | / ""#???#?#?# """ ## #??????##?? | | "] ""####???## ^ """ ######+#####???""????? | | "] "#?#????# ^"" ##?#??#""#???? | | " [ ##????## "" #???##""#???? | | """" #??????# #####?#""##??# | | ######## #??#???###^ ^ ###""#?#?# | | ########++#??#?##??# "" #### % ""### # | | #????#?#?#^ ^"" # = *""!= | | #??????#?# """Ep # [""* | | #????????# """p p# "" ! | | ############??#??#?# "" ! %%% | | ####????????#????### "" ]!= %% % !=%%= | | #???????#???????# % =! %% % | | "" #?#???? ??? ?? ?# % = =%% [ | | "" #????? ???? ????# ###### !# ""![ | | "" #????????? ?????# #??##" ]* ""== | | #????????? ???? + ?#??## "" " | | #?#??????? ??? # ?###### ""##### | | #?##??????? ? ?# ??#"""""## # #####""#???# | | ##??#? ?? ??# ??#""X""## ###???#""#???? | +----------------------------------------------------+ Best States ------------- Heat Dissipation 57 Energy Generation 21 Energy Capacity 925 Matter Stores 300 Matter Capacity 350 Sight Range 24 Robot Scan Range 16 Terrain Scan Range 20 Terrain Scan Density 110 Base Temperature (-) 200 Armor Coverage 625 Propulsion Shielding 66 Evasion (%) 61 Targeting Accuracy 18 Melee Accuracy 5 Target Analysis 5 Armor Integrity Analysis 30 Recoil Reduction 5 Kinecelleration 40 Salvage Targeting 8 Offensive Hacking 14 Item Schematics ----------------- Combat Drone Bay | -6/Data Miner | Free Lgt. Regenerative Plating | -6/Data Miner | Free Enh. Flexi-carbon Leg | -6/Data Miner | Free Imp. Matter Compressor | -6/Data Miner | Free Enh. Coil Gun | -6/Data Miner | Free Imp. Antigrav System | -6/Data Miner | Free Adv. Power Amplifier | -6/Data Miner | Free Hvy. Disruptor Cannon | -6/Data Miner | Free Adv. Transmission Jammer | -6/Data Miner | Free Robot Schematics ------------------ B-48 Gladiator | -6/Data Miner | Free G-50 Soldier | -6/Data Miner | Free R-10 Processor | -6/Data Miner | Free A-15 Conveyor | -6/Data Miner | Free D-63 Destroyer | -6/Data Miner | Free Fabricated ------------ Enh. Flexi-carbon Leg | x1 | -5/Factory Alien Tech Used ----------------- Dimensional Node Initializer Achievements -------------- Reappropriation Challenges ------------ None Game ------ Seed FlyingDroneSteel Manual? 0 Play Time 03:06:52 Cumulative 561.7 hours Start 2024.01.09 @ 17:50:28 End 2024.01.12 @ 15:38:18 Sessions 15 Manual Loads 0 Difficulty Rogue Special Mode None Game No. 84 Rogue 67 Adventurer 17 Explorer 0 Win Type - Total 1 Types 1/0/0/0/0/0/0/0/0 Lore% 53 Gallery% 65 Achievement% 55 Wizard Run 0 Options --------- ASCII 0 Keyboard 1 Movement Vi Keybinds 0 Fullscreen 1 Font 18/SmallcapsGlow Map View 76x50 Zoom Use 0% Tactical HUD 1 Map Filters NONE Filters NONE Steam 1 RUN: aab4edc5-7364-4eb2-a9a6-9f14d7c74594